Cogmind - Beta 10.1 @@@ ROGUE MODE // 2020.12.14 @ 23:27:32 Player: S0ZDATEL Result: Destroyed by G-47 Trooper with Particle Gun Performance ------------- Evolutions (0) 0 Regions Visited (2) 400 Robots Destroyed (30) 150 Value Destroyed (587) 587 Prototype IDs (6) 120 Alien Tech Used (0) 0 Bonus (0) 0 TOTAL SCORE: 1257 Bonus ------- None Cogmind --------- Core Integrity 0/250 Matter 192/300 Energy 140/140 System Corruption 0% Temperature Cool (32) Movement Walking (155) Ox1 Location -10/Mines Parts ------- > --- POWER (1) -------- Light Deuterium Engine > --- PROPULSION (2) --- Aluminum Leg Titanium Leg > --- UTILITY (2) ------ Large Storage Unit Large Storage Unit > --- WEAPON (2) ------- Light Cannon Grenade Launcher > --- INVENTORY (16) --- Structural Scanner Visual Processing Unit Advanced Targeting Computer Improved Light Armor Plating Improved Light Armor Plating EM Pulse Gun EM Pulse Gun EM Pulse Gun EM Pulse Gun Autogun Autogun Autogun Light Cannon Hammer Heavy Explosive Trap Heavy Explosive Trap Peak State ------------ > --- POWER ------------ Light Deuterium Engine > --- PROPULSION ------- Aluminum Leg Titanium Leg > --- UTILITY ---------- Large Storage Unit Large Storage Unit > --- WEAPON ----------- EM Pulse Gun Light Cannon > --- INVENTORY -------- Aluminum Leg Structural Scanner Visual Processing Unit Improved Light Armor Plating Improved Light Armor Plating EM Pulse Gun EM Pulse Gun EM Pulse Gun Autogun Autogun Autogun Light Cannon Grenade Launcher Hammer Heavy Explosive Trap Heavy Explosive Trap [Rating: 14] Favorites ----------- Power Ion Engine Engine Ion Engine Propulsion Aluminum Leg Leg Aluminum Leg Utility Large Storage Unit Device ECM Suite Storage Large Storage Unit Processor Seismic Analyzer Weapon EM Pulse Gun Energy Gun EM Pulse Gun Ballistic Gun Light Assault Rifle Ballistic Cannon Light Cannon Launcher Grenade Launcher Impact Weapon Hammer Build | -11 -10 -10 ------- Run | Scr Mat Min Slots Evolved . | . . . Power . | . . . Propulsion . | . . . Utility . | . . . Weapon . | . . . Parts Attached 35 | 6 23 6 Power 6 | 1 4 1 Engine 6 | 1 4 1 Core . | . . . Reactor . | . . . Propulsion 8 | 2 4 2 Treads . | . . . Leg 8 | 2 4 2 Wheel . | . . . Hover . | . . . Flight . | . . . Utility 6 | 1 5 . Device 1 | . 1 . Storage 4 | . 4 . Processor 1 | 1 . . Hackware . | . . . Protection . | . . . Artifact . | . . . Weapon 15 | 2 10 3 Energy Gun 4 | 1 2 1 Energy Cannon . | . . . Ballistic Gun 1 | 1 . . Ballistic Cannon 3 | . 3 . Launcher 4 | . 2 2 Special Weapon . | . . . Impact Weapon 3 | . 3 . Slashing Weapon . | . . . Piercing Weapon . | . . . Special Melee Weapon . | . . . Unidentified Prototypes . | . . . Parts Lost 1 | . 1 . Power . | . . . Propulsion 1 | . 1 . Utility . | . . . Weapon . | . . . Highest Loss Streak 1 | . 1 . Average Slot Usage (%) 99 | . 99 100 Engine 14 | . 14 14 Leg 27 | . 27 28 Device 1 | . 1 . Storage 26 | . 25 28 Energy Gun 13 | . 13 13 Ballistic Gun 1 | . 2 . Ballistic Cannon 10 | . 9 14 Impact Weapon 1 | . 2 . Naked Turns . | . . . Heaviest Build 43 | 6 42 43 Greatest Support 27 | 10 20 27 Greatest Overweight (x) 4 | 1 4 2 Average Overweight (x) 1 | . 1 1 Largest Inventory Capacity 16 | 4 16 16 Average Capacity 13 | 4 13 16 Most Carried 16 | 4 16 16 Average Carried 12 | 3 11 15 Final Capacity 16 | 4 16 16 Final Carried 16 | 4 16 16 Class Distribution -------------------- 100% | Mutant Dominant Class ---------------- Mutant | -10/Materials Mutant | -10/Mines Resources | -11 -10 -10 ----------- Run | Scr Mat Min Matter Collected 623 | 181 402 40 Remotely . | . . . Salvage Created 953 | 185 728 40 Parts 46 | 7 33 6 Haulers Intercepted 1 | . 1 . Recyclers Shooed . | . . . Parts Field Recycled . | . . . Retrieved Matter . | . . . Parts Self-Destructed . | . . . Prevented . | . . . Kills | -11 -10 -10 ------- Run | Scr Mat Min Combat Hostiles Destroyed 17 | . 14 3 Melee 3 | . 3 . Cannons 3 | . 1 2 AOE 8 | . 7 1 Classes Destroyed 7 | 2 5 . Worker 1 | . 1 . Tunneler 5 | 5 . . Hauler 1 | . 1 . Recycler 4 | 1 3 . Watcher 2 | . 2 . Swarmer 6 | . 3 3 Grunt 11 | . 11 . Best Kill Streak 4 | 4 4 3 Combat Bots Only 3 | . 3 3 Max Kills in Single Turn 4 | 1 4 2 Gunslinging . | . . . Exploded 3 | . 3 1 Melee 1 | . 1 . Uniques/NPCs Destroyed . | . . . Combat | -11 -10 -10 -------- Run | Scr Mat Min Damage Taken 1068 | . 793 275 Core 256 | . 200 56 Absorbed by Shields . | . . . Core Remaining (%) 100 | 100 . . Volleys Fired 45 | 17 21 7 Largest 2 | 2 2 2 Hottest 75 | 60 75 75 Shots Fired 88 | 34 40 14 Gun 58 | 34 22 2 Cannon 22 | . 15 7 Launcher 8 | . 3 5 Special . | . . . Kinetic 40 | 17 16 7 Thermal . | . . . Explosive 8 | . 3 5 Electromagnetic 40 | 17 21 2 Robot Hit Streak 10 | 10 9 2 Robot Miss Streak 5 | 2 5 3 Penetration Max . | . . . Secondary Targets . | . . . Shots Hit Robots 88 | 27 55 6 Core Hits 38 | 10 25 3 Critical Hits . | . . . Critical Kills . | . . . Critical Parts Destroyed . | . . . Melee Attacks 40 | . 40 . Impact 40 | . 40 . Slashing . | . . . Piercing . | . . . Sneak Attacks 1 | . 1 . Combat Hostiles . | . . . Follow-up Attacks . | . . . Damage Inflicted 1904 | 356 1401 147 Guns 443 | 277 166 . Cannons 177 | . 143 34 Explosions 618 | 79 426 113 Melee 666 | . 666 . Ramming . | . . . Kinetic 291 | 104 153 34 Thermal 239 | 79 160 . Explosive 379 | . 266 113 Electromagnetic 329 | 173 156 . Impact 666 | . 666 . Slashing . | . . . Piercing . | . . . Highest Corruption . | . . . Average Corruption . | . . . Corruption Purged . | . . . Overload Shots . | . . . Overflow Damage 50 | . 25 25 Projectiles . | . . . Explosions 25 | . . 25 Melee 25 | . 25 . Knockbacks 4 | . 4 . Impact 2 | . 2 . Kinetic 1 | . 1 . Secondary 1 | . 1 . Self-Inflicted Damage 131 | . 39 92 Shots 4 | . 1 3 Rammed . | . . . Targets Rammed . | . . . Kicked . | . . . Crushed . | . . . Highest Temperature 60 | 60 60 36 Average Temperature 23 | 24 23 19 Received Heat Transfer 486 | . 438 48 Siege Activations . | . . . Robots Corrupted 1 | . 1 . Combat Hostiles . | . . . Parts Fried 6 | 2 4 . Impact Corruptions 4 | . 4 . Robots Melted . | . . . Combat Hostiles . | . . . Parts Melted . | . . . Heat Transferred 300 | 50 250 . Parts Sabotaged . | . . . Parts Stolen . | . . . Parts Stripped . | . . . Power Chain Reactions 4 | 2 2 . Missiles Intercepted . | . . . Alert | -11 -10 -10 ------- Run | Scr Mat Min Peak Influence 177 | 30 177 100 Initial 21 | . 19 21 Average 33 | 13 39 23 Maximum Alert Level . | . . . Low Security (%) 100 | 100 100 100 Level 1 . | . . . Level 2 . | . . . Level 3 . | . . . Level 4 . | . . . Level 5 . | . . . High Security . | . . . Max Security . | . . . Squads Dispatched 2 | . 1 1 Investigation 2 | . 1 1 Extermination . | . . . Reinforcement . | . . . Assault . | . . . Garrison . | . . . Intercept . | . . . Construction Impeded . | . . . Haulers Reinforced . | . . . Stealth | -11 -10 -10 --------- Run | Scr Mat Min Distress Signals 1 | . 1 . Communications Jammed . | . . . Distress Signals . | . . . Times Spotted 29 | . 21 8 Peak Tracking Total 5 | . 3 5 Tactical Retreats 1 | . 1 . Traps | -11 -10 -10 ------- Run | Scr Mat Min Traps Triggered . | . . . Indirectly . | . . . Trap Hack Attempts . | . . . Triggered . | . . . Disarmed . | . . . Reprogrammed 4 | . 4 . Reused . | . . . Traps Extracted . | . . . Installed . | . . . Triggered . | . . . Machines | -11 -10 -10 ---------- Run | Scr Mat Min Machines Disabled 2 | . . 2 Max in Single Turn 1 | . . 1 Machines Sabotaged . | . . . Garrisons Compromised . | . . . Overloaded Fab Kills . | . . . Fab Network Shutdowns . | . . . Hacking | -11 -10 -10 --------- Run | Scr Mat Min Machines Accessed 11 | . 10 1 Terminals 8 | . 8 . Fabricators . | . . . Repair Stations 1 | . 1 . Recycling Units 1 | . 1 . Scanalyzers . | . . . Garrison Access . | . . . Total Hacks 42 | . 41 1 Successful 27 | . 26 1 Failed 15 | . 15 . Catastrophic . | . . . Database Lockouts . | . . . Manual 18 | . 18 . Terminals 33 | . 33 . Fabricators . | . . . Repair Stations 6 | . 6 . Recycling Units 2 | . 2 . Scanalyzers . | . . . Garrison Access . | . . . Terminal Hacks 13 | . 12 1 Robot Analysis 1 | . 1 . Prototype ID Bank 4 | . 4 . Open Door 1 | . . 1 Emergency Access Points 1 | . 1 . Unreport Threat 2 | . 2 . Reprogram Traps 2 | . 2 . Recall Investigation 1 | . 1 . Zone Layout 1 | . 1 . Fabricator Hacks . | . . . Repair Station Hacks 4 | . 4 . Scan Component 2 | . 2 . Repair 2 | . 2 . Recycling Unit Hacks 1 | . 1 . Report Inventory 1 | . 1 . Scanalyzer . | . . . Garrison Access Hacks . | . . . Unauthorized Hacks 9 | . 9 . Terminals 8 | . 8 . Track 3 | . 3 . Botnet 3 | . 3 . Detonate 1 | . 1 . Operators 1 | . 1 . Fabricators . | . . . Repair Stations . | . . . Recycling Units 1 | . 1 . Tunnel 1 | . 1 . Scanalyzers . | . . . Garrison Access . | . . . Data Cores Recovered . | . . . Used . | . . . Hacking Detections 9 | . 9 . Full Trace Events 1 | . 1 . Feedback Events . | . . . Feedback Blocked . | . . . Robot Schematics Acquired . | . . . Robots Built . | . . . Matter . | . . . Time . | . . . Total Robot Build Rating . | . . . Part Schematics Acquired . | . . . Parts Built . | . . . Matter . | . . . Time . | . . . Total Part Build Rating . | . . . Parts Repaired 2 | . 2 . Time 52 | . 52 . Parts Recycled . | . . . Recycled Matter . | . . . Retrieved Matter . | . . . Retrieved Components . | . . . Parts Scanalyzed . | . . . Part Schematics Acquired . | . . . Parts Damaged . | . . . Bothacking | -11 -10 -10 ------------ Run | Scr Mat Min Used RIF Installer . | . . . Robots Hacked . | . . . Non-combat . | . . . Combat . | . . . Robot Hacks Applied . | . . . Relay Couplers Released . | . . . Robots Rewired . | . . . Allies Hacked . | . . . Hacks Repelled . | . . . Allies | -11 -10 -10 -------- Run | Scr Mat Min Total Allies . | . . . Largest Group . | . . . Highest-Rated Group . | . . . Highest-Rated Ally . | . . . Total Orders . | . . . Ally Attacks . | . . . Total Damage . | . . . Kills . | . . . Allies Corrupted . | . . . Allies Melted . | . . . Intel | -11 -10 -10 ------- Run | Scr Mat Min Robot Analysis Total 1 | . 1 . Derelict Logs Recovered 1 | . . 1 Drone Launches . | . . . Drone Recoveries . | . . . Exploration | -11 -10 -10 ------------- Run | Scr Mat Min Turns Passed 2188 | 108 1480 600 Spaces Moved 1100 | 41 753 306 Core 14 | 14 . . Treads . | . . . Legs 1086 | 27 753 306 Wheels . | . . . Hover . | . . . Flight . | . . . Fastest Speed 50 | 50 120 155 Average Speed 161 | 105 155 182 Slowest Speed 240 | 120 240 190 Overloaded Moves . | . . . Propulsion Burnouts . | . . . Robots Hopped . | . . . Cave-ins Triggered . | . . . Exploration Rate (%) 53 | 3 93 64 Regions Visited 2 Branch Regions 1 Pre-discovered Areas 2 | . 1 1 Known Exits Taken . | . . . Unknown Exits Taken 2 | 1 1 . Scrap Searched . | . . . Spaces Dug . | . . . Terrain Destroyed 80 | 5 30 45 Melee . | . . . Projectile . | . . . AOE 80 | 5 30 45 Terrain Rammed . | . . . Walls Destroyed . | . . . Machines Disabled . | . . . Actions | -11 -10 -10 --------- Run | Scr Mat Min Total 1367 | 72 961 334 Wait 95 | 5 89 1 Move 1098 | 40 752 306 Hop . | . . . Pick Up 31 | 4 21 6 Fast Attach 10 | 6 4 . Attach 2 | . 2 . Detach . | . . . Swap 23 | . 17 6 Drop 23 | . 15 8 Fire 45 | 17 21 7 Melee 40 | . 40 . Ram . | . . . Kick . | . . . Crush . | . . . Escape Stasis . | . . . Rewire . | . . . Trap . | . . . Miscellaneous . | . . . Route ------- -11/Scrapyard -10/Materials (discovered 4 exits: [*Mat x3] / *Min) -10/Mines (discovered 2 exits: [*Mat x2]) History --------- Turn | Location | Event 16 | -11/Scrapyard | Discovered new exit (range 14) 109 | -11/Scrapyard | Entered Materials 303 | -10/Materials | Build established: Mutant 528 | -10/Materials | Discovered new exit (range 8) 851 | -10/Materials | Discovered new exit (range 14) 1044 | -10/Materials | Discovered new exit (range 8) 1090 | -10/Materials | Repaired Aluminum Leg 1117 | -10/Materials | Repaired Ion Engine 1270 | -10/Materials | Core integrity fell below 50% 1279 | -10/Materials | Discovered new exit (range 16) 1589 | -10/Materials | Entered Mines 1590 | -10/Mines | Learned location of Storage (-8) 1683 | -10/Mines | Found a hidden stash of uninstalled traps 1763 | -10/Mines | Met a Derelict shopkeep closing up shop 1908 | -10/Mines | Discovered new exit (range 7) 2155 | -10/Mines | Learned Materials terminal intel 2161 | -10/Mines | Discovered new exit (range 14) 2166 | -10/Mines | Core integrity fell below 20% 2189 | -10/Mines | Destroyed by G-47 Trooper with Particle Gun Last Messages --------------- 01808_ R-06 Scavenger collects Ion Engine. 01814_ K-01 Serf collects debris. 01864_ Acquired 34 matter. 01908_ EXIT=FOUND 01914_ Extracted 6 matter. 02028_ K-01 Serf collects debris. 02124_ S-10 Pest destroyed. 02124_ Plasma Injector explodes. 02124_ S-10 Pest destroyed. 02132_ U-05 Engineer lays Concrete. 02135_ U-05 Engineer builds a Wall. 02139_ U-05 Engineer lays Concrete. 02142_ U-05 Engineer builds a Wall. 02146_ U-05 Engineer lays Concrete. 02155_ Acquired derelict log, extracted data. Data stored: Materials terminal intel. 02161_ EXIT=FOUND 02186_ Laser Drill disabled. 02186_ Destroyed Lgt. Ion Engine. [Achievement: This Is Interesting...] Map ----- +----------------------------------------------------+ | ##???????????## ##????????? | | ##????????????###??????????? | | #####?????????????????????? | | ### ##????????????????????? | | ??## ######???????????????? | | ???## #???????????????? | | ????# #???????????????? | | ???## ##???????????????? | | ??## ##????????????????? | | ??# ###?????????????????? | | # ### #####???????????????? | | ##?# ##"""###????????????? | | ??## ### ""##?########??? | | ?## " ### #??? | | ?# """ #??? | | #?# "## """ #??? | | #??# ## "" #??? | | #???# ### #??? | | ??????# #? #??? | | ??????# #? #??? | | ??????## [ ### #??? | | ???????#### ### * # s #??? | | ??????????####?# # #??? | | ???????????????# * ## #??? | | ??????????????## [ ### ???? | | ???????????#### ##@#????? | | ???????????# ###g#????? | | ??????????# # # #????? | | ??????????# ### ## ####????? | | ??????????## #??# ## #???????? | | ???????????###???# ## #???????? | | ?????????????????# #???????? | | ?????????????????# #???????? | | ?????????????????### #???????? | | ??????????????????# ??????? | | ????????????????? """ ""?????? | | ????????????????### """ """????? | | ??????????????????# """ """ ??? | | ??????????????????# #?? | | ??????????????????# """ """ ???? | | ??????????????????# """ """????? | | ??????????????????# ??? ""?????? | | ??????????????????# ??? ??????? | | ??????????????????#???? ??????? | | ???????????????????????? ??????? | | ????????????????????????